[Event "Icelandic Team-ch Kvika Leagu 2023-24"]
[Site "Reykjavik"]
[Date "2024.03.02"]
[Round "8"]
[White "Donchenko, Alexander"]
[Black "Olsen, Filip Boe"]
[Result "1-0"]
[ECO "E06"]
[WhiteElo "2631"]
[BlackElo "2456"]
[Annotator "RC"]
[PlyCount "95"]
[EventDate "2024.02.29"]
[EventType "team-tourn"]
[EventCountry "ISL"]
[SourceTitle "playchess.com"]
[Source "ChessBase"]
[SourceQuality "1"]
[TimeControl "40/5400+30:900+30"]

1. c4 {[%emt 0:00:14]} e6 {[%emt 0:00:05]} 2. g3 {[%emt 0:00:41]} d5 {[%emt 0:00:36]} 3. Bg2 {[%emt 0:00:06]} Nf6 {[%emt 0:00:32]} 4. Nf3 {[%emt 0:00:17]} Be7 {[%emt 0:00:13]} 5. d4 {[%emt 0:05:21]} O-O {[%emt 0:00:15]} 6. Nc3 {[%emt 0:00:52]} dxc4 {[%emt 0:01:39]} 7. Ne5 {[%emt 0:00:07]} c5 {[%emt 0:00:23]} 8. dxc5 {[%emt 0:00:07]} Qxd1+ {[%emt 0:00:14]} 9. Nxd1 {[%emt 0:00:07]} Bxc5 {[%emt 0:00:14]} 10. O-O {[%emt 0:08:48]} Nc6 {[%emt 0:01:08]} 11. Bxc6 {[%emt 0:02:31]} bxc6 {[%emt 0:00:12]} 12. Be3 {[%emt 0:00:15]} Bxe3 {[%emt 0:12:07]} 13. Nxe3 {[%emt 0:00:37]} c3 {[%emt 0:00:43]} 14. bxc3 {[%emt 0:03:12]} Nd5 {[%emt 0:16:37]} 15. c4 {[%emt 0:03:46]} Nc3 {[%emt 0:10:26]} 16. Rfe1 {[%emt 0:01:36]} Rd8 {[%emt 0:09:20]} 17. Kf1 {[%emt 0:05:58]} Rd2 {[%emt 0:06:42]} 18. a3 {[%emt 0:05:34]} f6 {[%emt 0:10:05]} 19. Nxc6 {[%emt 0:01:25]} Bd7 {[%emt 0:04:41]} 20. Na5 {[%emt 0:01:27]} Ba4 {[%emt 0:05:47]} 21. Rac1 {[%emt 0:11:46]} Ne4 {[%emt 0:02:45]} 22. c5 {[%emt 0:00:50]} Rb2 {[%emt 0:02:05]} 23. c6 {[%emt 0:09:02]} Nd2+ {[%emt 0:02:26]} 24. Kg1 {[%emt 0:01:11]} Rc8 {[%emt 0:02:29]} 25. c7 {[%emt 0:01:48]} Rb5 {[%emt 0:06:40]} 26. Nac4 {[%emt 0:03:12]} Nxc4 {[%emt 0:01:04]} 27. Rxc4 {[%emt 0:00:04]} Bb3 {[%emt 0:00:08]} 28. Rc3 {[%emt 0:00:33]} Rb7 {[%emt 0:00:16]} 29. Rb1 {[%emt 0:13:38]} Bd5 {[%emt 0:00:10]} 30. Rd1 {[%emt 0:00:07]} Rcxc7 {[%emt 0:02:25]} 31. Rxc7 {[%emt 0:00:20]} Rxc7 {[%emt 0:00:02]} 32. Nxd5 {[%emt 0:00:07]} exd5 {[%emt 0:00:10]} 33. Rxd5 {[%emt 0:00:05]} Kf7 {[%emt 0:02:04]} 34. Rd6 {[%emt 0:03:26]} Ke7 {[%emt 0:00:44]} 35. Ra6 {[%emt 0:00:06]} Kd7 {[%emt 0:00:19]} 36. Kg2 {[%emt 0:01:47]} Kc8 {[%emt 0:00:19]} 37. e4 {[%emt 0:00:35]} Kb7 {[%emt 0:00:34]} 38. Rd6 {[%emt 0:00:16]} Re7 {[%emt 0:02:02]} 39. Kf3 {[%emt 0:00:47]} Kc7 {[%emt 0:00:06]} 40. Rd5 {[%emt 0:00:00]} Kb6 {[%emt 0:00:00]} 41. Ke3 {[%emt 0:04:48]} Rc7 {[%emt 0:01:24]} 42. f4 {[%emt 0:03:38]} Rc3+ {[%emt 0:02:15]} 43. Rd3 {[%emt 0:00:14]} Rc2 {[%emt 0:02:09]} 44. h4 {[%emt 0:02:55]} Ra2 {[%emt 0:02:04]} 45. Rc3 {[%emt 0:02:27]} Ra1 {[%emt 0:02:43]} 46. e5 {[%emt 0:00:45]} fxe5 {[%emt 0:00:33]} 47. fxe5 {[%emt 0:00:07]} Rd1 {[%emt 0:01:44]} 48. Ke4 {[%emt 0:00:36]} 1-0

[Event "Icelandic Team-ch Kvika Leagu 2023-24"]
[Site "Reykjavik"]
[Date "2024.03.02"]
[Round "8"]
[White "Laurusas, Tomas"]
[Black "Hjartarson, Johann"]
[Result "1/2-1/2"]
[ECO "E15"]
[WhiteElo "2586"]
[BlackElo "2460"]
[Annotator "RC"]
[PlyCount "53"]
[EventDate "2024.02.29"]
[EventType "team-tourn"]
[EventCountry "ISL"]
[SourceTitle "playchess.com"]
[Source "ChessBase"]
[SourceQuality "1"]
[TimeControl "40/5400+30:900+30"]

1. d4 {[%emt 0:00:03]} Nf6 {[%emt 0:03:21]} 2. c4 {[%emt 0:00:18]} e6 {[%emt 0:00:12]} 3. Nf3 {[%emt 0:00:13]} b6 {[%emt 0:00:21]} 4. g3 {[%emt 0:00:32]} Ba6 {[%emt 0:00:08]} 5. b3 {[%emt 0:00:29]} Bb7 {[%emt 0:00:11]} 6. Bg2 {[%emt 0:00:39]} Bb4+ {[%emt 0:00:09]} 7. Bd2 {[%emt 0:00:14]} c5 {[%emt 0:00:07]} 8. O-O {[%emt 0:03:27]} O-O {[%emt 0:00:07]} 9. dxc5 {[%emt 0:20:14]} Bxc5 {[%emt 0:01:45]} 10. Nc3 {[%emt 0:00:07]} Be7 {[%emt 0:02:43]} 11. Qc2 {[%emt 0:01:57]} Na6 {[%emt 0:02:14]} 12. Rfd1 {[%emt 0:01:23]} Nc5 {[%emt 0:00:38]} 13. Bf4 {[%emt 0:00:33]} a6 {[%emt 0:02:24]} 14. Rac1 {[%emt 0:05:33]} h6 {[%emt 0:04:06]} 15. Qb2 {[%emt 0:07:26]} Nce4 {[%emt 0:04:00]} 16. Nxe4 {[%emt 0:04:59]} Bxe4 {[%emt 0:02:13]} 17. Be5 {[%emt 0:05:25]} d6 {[%emt 0:05:58]} 18. Ne1 {[%emt 0:08:16]} Bxg2 {[%emt 0:01:43]} 19. Nxg2 {[%emt 0:00:08]} Qc7 {[%emt 0:00:39]} 20. Bxf6 {[%emt 0:00:12]} Bxf6 {[%emt 0:00:06]} 21. Qb1 {[%emt 0:00:04]} Rfd8 {[%emt 0:02:28]} 22. Qe4 {[%emt 0:01:16]} Rac8 {[%emt 0:00:32]} 23. Nf4 {[%emt 0:05:08]} Qc5 {[%emt 0:02:01]} 24. h4 {[%emt 0:01:29]} Qa5 {[%emt 0:06:08]} 25. a4 {[%emt 0:08:50]} b5 {[%emt 0:05:02]} 26. cxb5 {[%emt 0:01:38]} Rxc1 {[%emt 0:00:10]} 27. Rxc1 {[%emt 0:00:03]} 1/2-1/2

[Event "Icelandic Team-ch Kvika Leagu 2023-24"]
[Site "Reykjavik"]
[Date "2024.03.02"]
[Round "8"]
[White "Pultinevicius, Paulius"]
[Black "Urkedal, Frode Olav Olsen"]
[Result "1-0"]
[ECO "D38"]
[WhiteElo "2575"]
[BlackElo "2536"]
[Annotator "RC"]
[PlyCount "87"]
[EventDate "2024.02.29"]
[EventType "team-tourn"]
[EventCountry "ISL"]
[SourceTitle "playchess.com"]
[Source "ChessBase"]
[SourceQuality "1"]
[TimeControl "40/5400+30:900+30"]

1. d4 {[%emt 0:00:02]} Nf6 {[%emt 0:00:07]} 2. c4 {[%emt 0:00:06]} e6 {[%emt 0:00:03]} 3. Nf3 {[%emt 0:00:05]} d5 {[%emt 0:00:06]} 4. Nc3 {[%emt 0:00:04]} Bb4 {[%emt 0:00:30]} 5. cxd5 {[%emt 0:00:07]} exd5 {[%emt 0:00:05]} 6. Bf4 {[%emt 0:00:04]} O-O {[%emt 0:04:16]} 7. e3 {[%emt 0:00:05]} Bg4 {[%emt 0:10:53]} 8. Qb3 {[%emt 0:01:48]} c5 {[%emt 0:02:35]} 9. dxc5 {[%emt 0:02:45]} Qa5 {[%emt 0:02:03]} 10. a3 {[%emt 0:10:08]} Bxc3+ {[%emt 0:09:22]} 11. Qxc3 {[%emt 0:01:17]} Qxc3+ {[%emt 0:00:11]} 12. bxc3 {[%emt 0:00:04]} Rc8 {[%emt 0:03:34]} 13. Nd4 {[%emt 0:09:31]} Rxc5 {[%emt 0:02:24]} 14. f3 {[%emt 0:05:03]} Be6 {[%emt 0:00:10]} 15. Kd2 {[%emt 0:02:26]} Nbd7 {[%emt 0:00:09]} 16. a4 {[%emt 0:05:16]} Rcc8 {[%emt 0:26:41]} 17. Bd3 {[%emt 0:03:34]} Nc5 {[%emt 0:00:15]} 18. Bc2 {[%emt 0:00:21]} Ne8 {[%emt 0:07:26]} 19. g4 {[%emt 0:00:49]} Rd8 {[%emt 0:00:00]} 20. h4 {[%emt 0:01:19]} Nd6 {[%emt 0:00:00]} 21. h5 {[%emt 0:00:25]} Nc4+ {[%emt 0:01:49]} 22. Ke2 {[%emt 0:00:06]} Bd7 {[%emt 0:02:13]} 23. Nf5 {[%emt 0:11:35]} Re8 {[%emt 0:02:19]} 24. Rhd1 {[%emt 0:03:18]} Ne6 {[%emt 0:03:20]} 25. Bg3 {[%emt 0:00:30]} Ng5 {[%emt 0:07:34]} 26. Rd3 {[%emt 0:01:20]} Rac8 {[%emt 0:07:55]} 27. Ra2 {[%emt 0:06:29]} b5 {[%emt 0:03:35]} 28. axb5 {[%emt 0:06:55]} Bxb5 {[%emt 0:00:15]} 29. Nd4 {[%emt 0:01:53]} a6 {[%emt 0:00:41]} 30. Kf2 {[%emt 0:03:55]} Nh3+ {[%emt 0:01:54]} 31. Kg2 {[%emt 0:00:07]} Nxe3+ {[%emt 0:01:39]} 32. Kxh3 {[%emt 0:04:12]} Bxd3 {[%emt 0:00:03]} 33. Bxd3 {[%emt 0:00:07]} Rxc3 {[%emt 0:00:05]} 34. Bxa6 {[%emt 0:00:12]} Ra8 {[%emt 0:00:05]} 35. Rb2 {[%emt 0:00:12]} Nc4 {[%emt 0:00:29]} 36. Rb5 {[%emt 0:00:59]} g6 {[%emt 0:02:41]} 37. h6 {[%emt 0:02:48]} Ne3 {[%emt 0:00:20]} 38. Bb7 {[%emt 0:01:37]} Ra1 {[%emt 0:00:04]} 39. Be5 {[%emt 0:04:54]} g5 {[%emt 0:01:20]} 40. Bc6 {[%emt 0:00:00]} f6 {[%emt 0:00:00]} 41. Rb8+ {[%emt 0:06:13]} Kf7 {[%emt 0:00:41]} 42. Be8+ {[%emt 0:00:27]} Ke7 {[%emt 0:00:13]} 43. Nf5+ {[%emt 0:00:29]} Nxf5 {[%emt 0:00:10]} 44. Bxc3 {[%emt 0:01:27]} 1-0

[Event "Icelandic Team-ch Kvika Leagu 2023-24"]
[Site "Reykjavik"]
[Date "2024.03.02"]
[Round "8"]
[White "Pakleza, Zbigniew"]
[Black "Kazakouski, Valery"]
[Result "1/2-1/2"]
[ECO "D37"]
[WhiteElo "2482"]
[BlackElo "2608"]
[Annotator "RC"]
[PlyCount "88"]
[EventDate "2024.02.29"]
[EventType "team-tourn"]
[EventCountry "ISL"]
[SourceTitle "playchess.com"]
[Source "ChessBase"]
[SourceQuality "1"]
[TimeControl "40/5400+30:900+30"]

1. d4 {[%emt 0:00:01]} d5 {[%emt 0:00:40]} 2. Nf3 {[%emt 0:00:11]} Nf6 {[%emt 0:00:16]} 3. c4 {[%emt 0:02:51]} e6 {[%emt 0:01:32]} 4. Nc3 {[%emt 0:00:08]} a6 {[%emt 0:01:06]} 5. cxd5 {[%emt 0:00:16]} exd5 {[%emt 0:00:07]} 6. Bg5 {[%emt 0:00:22]} Be6 {[%emt 0:00:29]} 7. e3 {[%emt 0:00:07]} Nbd7 {[%emt 0:00:21]} 8. Bd3 {[%emt 0:00:18]} Bd6 {[%emt 0:00:09]} 9. O-O {[%emt 0:00:18]} c6 {[%emt 0:00:34]} 10. Bf4 {[%emt 0:01:03]} Qb8 {[%emt 0:00:40]} 11. Bxd6 {[%emt 0:00:07]} Qxd6 {[%emt 0:00:07]} 12. a3 {[%emt 0:02:20]} O-O {[%emt 0:01:32]} 13. h3 {[%emt 0:00:22]} g6 {[%emt 0:01:58]} 14. Rc1 {[%emt 0:00:47]} a5 {[%emt 0:04:12]} 15. Qd2 {[%emt 0:03:25]} Rfe8 {[%emt 0:02:21]} 16. Rfe1 {[%emt 0:01:35]} Kg7 {[%emt 0:02:38]} 17. Qc2 {[%emt 0:01:33]} Rec8 {[%emt 0:11:32]} 18. Red1 {[%emt 0:01:03]} Rab8 {[%emt 0:08:29]} 19. Qd2 {[%emt 0:06:05]} h6 {[%emt 0:02:32]} 20. Ne2 {[%emt 0:03:07]} Ra8 {[%emt 0:08:28]} 21. Nc3 {[%emt 0:00:35]} b6 {[%emt 0:06:18]} 22. Qe1 {[%emt 0:05:49]} Nh7 {[%emt 0:04:46]} 23. Rd2 {[%emt 0:04:15]} Ng5 {[%emt 0:12:06]} 24. Qe2 {[%emt 0:09:20]} b5 {[%emt 0:06:42]} 25. Rdc2 {[%emt 0:03:23]} Rcb8 {[%emt 0:10:32]} 26. Nb1 {[%emt 0:03:18]} Nxf3+ {[%emt 0:01:23]} 27. Qxf3 {[%emt 0:00:06]} Rb6 {[%emt 0:00:18]} 28. Qf4 {[%emt 0:05:25]} Qxf4 {[%emt 0:02:13]} 29. exf4 {[%emt 0:00:02]} Rc8 {[%emt 0:04:48]} 30. Nd2 {[%emt 0:03:04]} a4 {[%emt 0:00:13]} 31. Nf3 {[%emt 0:05:03]} b4 {[%emt 0:01:30]} 32. g4 {[%emt 0:13:01]} bxa3 {[%emt 0:00:51]} 33. bxa3 {[%emt 0:00:02]} Nf6 {[%emt 0:02:39]} 34. Ne5 {[%emt 0:01:44]} Rb3 {[%emt 0:00:01]} 35. Rxc6 {[%emt 0:03:12]} Rxc6 {[%emt 0:00:04]} 36. Rxc6 {[%emt 0:00:01]} g5 {[%emt 0:02:47]} 37. fxg5 {[%emt 0:03:22]} hxg5 {[%emt 0:00:05]} 38. Bf5 {[%emt 0:00:22]} Bxf5 {[%emt 0:01:29]} 39. gxf5 {[%emt 0:00:02]} Ng8 {[%emt 0:00:38]} 40. Kg2 {[%emt 0:00:07]} Rxa3 {[%emt 0:00:00]} 41. Ra6 {[%emt 0:20:59]} Ra1 {[%emt 0:03:32]} 42. Ng4 {[%emt 0:01:14]} a3 {[%emt 0:02:00]} 43. f6+ {[%emt 0:00:24]} Kh7 {[%emt 0:00:14]} 44. Ne3 {[%emt 0:03:53]} a2 {[%emt 0:03:22]} 1/2-1/2

[Event "Icelandic Team-ch Kvika Leagu 2023-24"]
[Site "Reykjavik"]
[Date "2024.03.02"]
[Round "8"]
[White "Stefansson, Hannes"]
[Black "Kjartansson, Gudmundur"]
[Result "1/2-1/2"]
[ECO "B92"]
[WhiteElo "2481"]
[BlackElo "2465"]
[Annotator "RC"]
[PlyCount "21"]
[EventDate "2024.02.29"]
[EventType "team-tourn"]
[EventCountry "ISL"]
[SourceTitle "playchess.com"]
[Source "ChessBase"]
[SourceQuality "1"]
[TimeControl "40/5400+30:900+30"]

1. e4 {[%emt 0:00:04]} c5 {[%emt 0:00:45]} 2. Nf3 {[%emt 0:00:18]} d6 {[%emt 0:00:15]} 3. d4 {[%emt 0:00:40]} cxd4 {[%emt 0:00:08]} 4. Nxd4 {[%emt 0:00:14]} Nf6 {[%emt 0:00:04]} 5. Nc3 {[%emt 0:00:30]} a6 {[%emt 0:00:06]} 6. Be2 {[%emt 0:00:26]} e5 {[%emt 0:00:37]} 7. Nb3 {[%emt 0:00:21]} Be7 {[%emt 0:00:19]} 8. Bg5 {[%emt 0:00:49]} Be6 {[%emt 0:01:04]} 9. Bxf6 {[%emt 0:00:30]} Bxf6 {[%emt 0:00:05]} 10. Nd5 {[%emt 0:00:12]} Nd7 {[%emt 0:03:25]} 11. Qd3 {[%emt 0:00:35]} 1/2-1/2

[Event "Icelandic Team-ch Kvika Leagu 2023-24"]
[Site "Reykjavik"]
[Date "2024.03.02"]
[Round "8"]
[White "Gretarsson, Helgi Ass"]
[Black "Gretarsson, Hjorvar Steinn"]
[Result "1-0"]
[ECO "D36"]
[WhiteElo "2477"]
[BlackElo "2530"]
[Annotator "RC"]
[PlyCount "157"]
[EventDate "2024.02.29"]
[EventType "team-tourn"]
[EventCountry "ISL"]
[SourceTitle "playchess.com"]
[Source "ChessBase"]
[SourceQuality "1"]
[TimeControl "40/5400+30:900+30"]

1. d4 {[%emt 0:00:03]} e6 {[%emt 0:04:20]} 2. c4 {[%emt 0:00:11]} d5 {[%emt 0:00:57]} 3. Nc3 {[%emt 0:00:08]} Nf6 {[%emt 0:00:08]} 4. Nf3 {[%emt 0:00:17]} Nbd7 {[%emt 0:01:46]} 5. cxd5 {[%emt 0:04:58]} exd5 {[%emt 0:00:42]} 6. Bg5 {[%emt 0:00:05]} h6 {[%emt 0:00:24]} 7. Bh4 {[%emt 0:00:01]} c6 {[%emt 0:00:33]} 8. e3 {[%emt 0:00:48]} Be7 {[%emt 0:00:53]} 9. Bd3 {[%emt 0:00:12]} O-O {[%emt 0:00:04]} 10. Qc2 {[%emt 0:01:22]} Re8 {[%emt 0:00:07]} 11. O-O {[%emt 0:04:10]} Ne4 {[%emt 0:01:27]} 12. Bg3 {[%emt 0:00:37]} Nxg3 {[%emt 0:02:01]} 13. hxg3 {[%emt 0:00:01]} Nf6 {[%emt 0:02:34]} 14. Ne5 {[%emt 0:01:52]} Bd6 {[%emt 0:09:56]} 15. f4 {[%emt 0:09:18]} c5 {[%emt 0:29:52]} 16. Qf2 {[%emt 0:09:36]} Be6 {[%emt 0:07:05]} 17. Rad1 {[%emt 0:15:07]} a6 {[%emt 0:04:17]} 18. Be2 {[%emt 0:03:12]} b5 {[%emt 0:10:28]} 19. Bf3 {[%emt 0:01:44]} cxd4 {[%emt 0:03:55]} 20. exd4 {[%emt 0:00:10]} b4 {[%emt 0:00:59]} 21. Na4 {[%emt 0:01:36]} Rc8 {[%emt 0:01:35]} 22. Nc5 {[%emt 0:07:06]} Bxc5 {[%emt 0:03:38]} 23. dxc5 {[%emt 0:00:01]} Qa5 {[%emt 0:00:25]} 24. c6 {[%emt 0:00:31]} Ne4 {[%emt 0:01:21]} 25. Bxe4 {[%emt 0:08:47]} dxe4 {[%emt 0:00:02]} 26. Rc1 {[%emt 0:00:01]} f6 {[%emt 0:03:12]} 27. Nd7 {[%emt 0:00:24]} Qxa2 {[%emt 0:03:55]} 28. Rfe1 {[%emt 0:03:01]} Bg4 {[%emt 0:02:36]} 29. f5 {[%emt 0:06:17]} Qa5 {[%emt 0:00:17]} 30. Nb6 {[%emt 0:01:46]} Rc7 {[%emt 0:00:52]} 31. Qc5 {[%emt 0:00:12]} Qxc5+ {[%emt 0:01:29]} 32. Rxc5 {[%emt 0:00:01]} Kh7 {[%emt 0:03:54]} 33. Nd5 {[%emt 0:02:16]} Re5 {[%emt 0:00:17]} 34. Rec1 {[%emt 0:00:15]} Rxc6 {[%emt 0:00:57]} 35. Nxf6+ {[%emt 0:01:47]} Rxf6 {[%emt 0:00:12]} 36. Rxe5 {[%emt 0:00:02]} Bxf5 {[%emt 0:00:25]} 37. Rf1 {[%emt 0:08:10]} Kg6 {[%emt 0:00:20]} 38. g4 {[%emt 0:00:09]} Bxg4 {[%emt 0:00:33]} 39. Rxf6+ {[%emt 0:01:35]} gxf6 {[%emt 0:00:59]} 40. Rxe4 {[%emt 0:00:00]} Kg5 {[%emt 0:00:00]} 41. Rxb4 {[%emt 0:00:41]} Be2 {[%emt 0:00:48]} 42. Kf2 {[%emt 0:00:29]} Bb5 {[%emt 0:00:19]} 43. Ke3 {[%emt 0:01:55]} h5 {[%emt 0:02:45]} 44. g3 {[%emt 0:01:20]} Bf1 {[%emt 0:03:57]} 45. Rf4 {[%emt 0:08:41]} Bh3 {[%emt 0:00:39]} 46. Kd4 {[%emt 0:03:16]} Bg4 {[%emt 0:00:40]} 47. Ke4 {[%emt 0:00:27]} a5 {[%emt 0:03:18]} 48. Ke3 {[%emt 0:00:50]} Bd1 {[%emt 0:00:38]} 49. Kd2 {[%emt 0:04:34]} Bb3 {[%emt 0:00:18]} 50. Kc3 {[%emt 0:00:03]} a4 {[%emt 0:00:51]} 51. Kb4 {[%emt 0:00:43]} f5 {[%emt 0:01:08]} 52. Kc5 {[%emt 0:00:13]} Bc2 {[%emt 0:00:32]} 53. Kd6 {[%emt 0:00:13]} Be4 {[%emt 0:00:48]} 54. Ke5 {[%emt 0:00:05]} Kg6 {[%emt 0:00:42]} 55. Ke6 {[%emt 0:03:25]} Kg5 {[%emt 0:01:06]} 56. Kd6 {[%emt 0:01:51]} Kf6 {[%emt 0:00:44]} 57. Rh4 {[%emt 0:00:07]} Kg6 {[%emt 0:00:14]} 58. Ke6 {[%emt 0:00:11]} Kg5 {[%emt 0:02:41]} 59. Ke5 {[%emt 0:00:09]} Bc2 {[%emt 0:00:42]} 60. Rb4 {[%emt 0:00:38]} Bd1 {[%emt 0:00:48]} 61. Rb7 {[%emt 0:00:15]} Kg4 {[%emt 0:02:20]} 62. Rg7+ {[%emt 0:00:34]} Kf3 {[%emt 0:00:17]} 63. Kxf5 {[%emt 0:00:23]} Ke3 {[%emt 0:00:04]} 64. Rc7 {[%emt 0:01:39]} Kd3 {[%emt 0:01:13]} 65. Ke5 {[%emt 0:02:22]} Bc2 {[%emt 0:00:29]} 66. Rc8 {[%emt 0:00:45]} Bd1 {[%emt 0:00:19]} 67. Rc3+ {[%emt 0:01:32]} Ke2 {[%emt 0:00:10]} 68. Ke4 {[%emt 0:00:54]} Kd2 {[%emt 0:00:39]} 69. Kd4 {[%emt 0:00:09]} Ke2 {[%emt 0:00:15]} 70. Ke4 {[%emt 0:02:10]} Kd2 {[%emt 0:00:01]} 71. Rc5 {[%emt 0:00:09]} Bc2+ {[%emt 0:01:26]} 72. Kd4 {[%emt 0:00:04]} Bd1 {[%emt 0:00:04]} 73. Rc7 {[%emt 0:01:08]} Bb3 {[%emt 0:00:26]} 74. Rc8 {[%emt 0:00:42]} Bd1 {[%emt 0:00:24]} 75. Rc5 {[%emt 0:00:44]} Be2 {[%emt 0:00:05]} 76. Rf5 {[%emt 0:00:56]} Ke1 {[%emt 0:01:23]} 77. Ke3 {[%emt 0:00:22]} Bg4 {[%emt 0:00:29]} 78. Ra5 {[%emt 0:01:10]} Bd1 {[%emt 0:00:39]} 79. Rc5 {[%emt 0:00:07]} 1-0

[Event "Icelandic Team-ch Kvika Leagu 2023-24"]
[Site "Reykjavik"]
[Date "2024.03.02"]
[Round "8"]
[White "Pantzar, Milton"]
[Black "Domalchuk-Jonasson, Aleksandr"]
[Result "0-1"]
[ECO "E05"]
[WhiteElo "2472"]
[BlackElo "2355"]
[Annotator "RC"]
[PlyCount "104"]
[EventDate "2024.02.29"]
[EventType "team-tourn"]
[EventCountry "ISL"]
[SourceTitle "playchess.com"]
[Source "ChessBase"]
[SourceQuality "1"]
[TimeControl "40/5400+30:900+30"]

1. d4 {[%emt 0:00:08]} d5 {[%emt 0:00:09]} 2. c4 {[%emt 0:00:27]} e6 {[%emt 0:00:07]} 3. Nf3 {[%emt 0:00:31]} Nf6 {[%emt 0:00:12]} 4. g3 {[%emt 0:01:04]} Be7 {[%emt 0:01:18]} 5. Bg2 {[%emt 0:00:32]} O-O {[%emt 0:00:13]} 6. O-O {[%emt 0:00:17]} dxc4 {[%emt 0:00:39]} 7. Qc2 {[%emt 0:02:33]} b5 {[%emt 0:00:49]} 8. a4 {[%emt 0:02:49]} b4 {[%emt 0:00:28]} 9. Nbd2 {[%emt 0:04:10]} Bb7 {[%emt 0:01:37]} 10. Nxc4 {[%emt 0:03:31]} c5 {[%emt 0:00:22]} 11. Rd1 {[%emt 0:05:12]} Nbd7 {[%emt 0:04:40]} 12. Be3 {[%emt 0:12:35]} Rc8 {[%emt 0:05:28]} 13. Nfe5 {[%emt 0:15:12]} Bxg2 {[%emt 0:03:20]} 14. Kxg2 {[%emt 0:00:22]} Nd5 {[%emt 0:04:38]} 15. Qb3 {[%emt 0:05:03]} Nxe5 {[%emt 0:20:49]} 16. dxe5 {[%emt 0:00:35]} Qc7 {[%emt 0:00:56]} 17. a5 {[%emt 0:16:48]} Rfd8 {[%emt 0:04:02]} 18. Bd2 {[%emt 0:02:01]} Qc6 {[%emt 0:02:30]} 19. f3 {[%emt 0:03:14]} Nc7 {[%emt 0:03:33]} 20. e4 {[%emt 0:10:20]} Nb5 {[%emt 0:04:01]} 21. Qa4 {[%emt 0:01:25]} Rd4 {[%emt 0:16:45]} 22. Qc2 {[%emt 0:00:55]} Rcd8 {[%emt 0:06:02]} 23. Be3 {[%emt 0:01:06]} R4d7 {[%emt 0:03:54]} 24. Rxd7 {[%emt 0:02:34]} Qxd7 {[%emt 0:00:10]} 25. Kf2 {[%emt 0:00:18]} Nd4 {[%emt 0:01:14]} 26. Bxd4 {[%emt 0:01:53]} Qxd4+ {[%emt 0:00:32]} 27. Ke2 {[%emt 0:00:30]} Qd7 {[%emt 0:01:18]} 28. Rd1 {[%emt 0:01:17]} Qb5 {[%emt 0:00:12]} 29. b3 {[%emt 0:01:45]} Rxd1 {[%emt 0:07:02]} 30. Qxd1 {[%emt 0:01:06]} Qc6 {[%emt 0:01:18]} 31. Ke3 {[%emt 0:00:51]} Kf8 {[%emt 0:00:53]} 32. f4 {[%emt 0:01:13]} g6 {[%emt 0:01:22]} 33. g4 {[%emt 0:01:14]} h6 {[%emt 0:00:48]} 34. Qd3 {[%emt 0:01:34]} Kg8 {[%emt 0:02:28]} 35. h3 {[%emt 0:00:54]} Kf8 {[%emt 0:00:33]} 36. Kf3 {[%emt 0:00:10]} Kg8 {[%emt 0:01:12]} 37. Kg3 {[%emt 0:00:19]} Qc7 {[%emt 0:00:18]} 38. Kf3 {[%emt 0:00:57]} Qc6 {[%emt 0:00:19]} 39. Kg3 {[%emt 0:00:06]} Qc7 {[%emt 0:00:03]} 40. h4 {[%emt 0:00:00]} Kf8 {[%emt 0:00:00]} 41. h5 {[%emt 0:07:32]} gxh5 {[%emt 0:04:13]} 42. gxh5 {[%emt 0:00:09]} Ke8 {[%emt 0:06:17]} 43. Kg4 {[%emt 0:04:46]} Qc6 {[%emt 0:02:37]} 44. Kg3 {[%emt 0:01:05]} Qc7 {[%emt 0:01:49]} 45. Kf3 {[%emt 0:01:19]} Qc6 {[%emt 0:00:43]} 46. Qd2 {[%emt 0:01:07]} Qc7 {[%emt 0:00:37]} 47. Qg2 {[%emt 0:02:59]} Kf8 {[%emt 0:00:49]} 48. f5 {[%emt 0:01:11]} Bg5 {[%emt 0:01:08]} 49. Qe2 {[%emt 0:00:58]} Qd8 {[%emt 0:01:02]} 50. Nd6 {[%emt 0:01:13]} Qxa5 {[%emt 0:00:19]} 51. Qc4 {[%emt 0:00:28]} Qa1 {[%emt 0:03:00]} 52. Qxc5 {[%emt 0:00:07]} Qc3+ {[%emt 0:00:17]} 0-1

[Event "Icelandic Team-ch Kvika Leagu 2023-24"]
[Site "Reykjavik"]
[Date "2024.03.02"]
[Round "8"]
[White "Stefansson, Vignir Vatnar"]
[Black "Olafsson, Helgi"]
[Result "1/2-1/2"]
[ECO "B12"]
[WhiteElo "2464"]
[BlackElo "2471"]
[Annotator "RC"]
[PlyCount "99"]
[EventDate "2024.02.29"]
[EventType "team-tourn"]
[EventCountry "ISL"]
[SourceTitle "playchess.com"]
[Source "ChessBase"]
[SourceQuality "1"]
[TimeControl "40/5400+30:900+30"]

1. e4 {[%emt 0:06:43]} c6 {[%emt 0:01:25]} 2. d4 {[%emt 0:00:28]} d5 {[%emt 0:00:06]} 3. e5 {[%emt 0:00:16]} Bf5 {[%emt 0:00:12]} 4. Nf3 {[%emt 0:00:24]} e6 {[%emt 0:00:20]} 5. Be2 {[%emt 0:00:09]} c5 {[%emt 0:03:51]} 6. c3 {[%emt 0:00:44]} Nc6 {[%emt 0:00:58]} 7. O-O {[%emt 0:00:11]} Bg4 {[%emt 0:08:08]} 8. Be3 {[%emt 0:09:22]} cxd4 {[%emt 0:04:14]} 9. cxd4 {[%emt 0:12:49]} Nge7 {[%emt 0:01:50]} 10. Nc3 {[%emt 0:02:57]} Nf5 {[%emt 0:00:23]} 11. a3 {[%emt 0:02:13]} Be7 {[%emt 0:02:43]} 12. Na4 {[%emt 0:18:52]} O-O {[%emt 0:04:38]} 13. b4 {[%emt 0:00:45]} b6 {[%emt 0:09:12]} 14. h3 {[%emt 0:09:37]} Bxf3 {[%emt 0:01:56]} 15. Bxf3 {[%emt 0:00:05]} Rc8 {[%emt 0:01:07]} 16. Bg4 {[%emt 0:02:51]} Nxe3 {[%emt 0:02:02]} 17. fxe3 {[%emt 0:00:08]} Bg5 {[%emt 0:01:02]} 18. Qd3 {[%emt 0:02:58]} g6 {[%emt 0:05:24]} 19. Nc3 {[%emt 0:01:32]} Ne7 {[%emt 0:04:40]} 20. Nb5 {[%emt 0:15:10]} h5 {[%emt 0:00:35]} 21. Bf3 {[%emt 0:00:09]} Nf5 {[%emt 0:00:33]} 22. e4 {[%emt 0:00:04]} Be3+ {[%emt 0:06:45]} 23. Kh1 {[%emt 0:01:16]} Ng3+ {[%emt 0:03:21]} 24. Kh2 {[%emt 0:00:05]} Bf4 {[%emt 0:07:50]} 25. Kg1 {[%emt 0:00:40]} dxe4 {[%emt 0:00:57]} 26. Bxe4 {[%emt 0:00:07]} Nxf1 {[%emt 0:00:06]} 27. Rxf1 {[%emt 0:00:05]} Qg5 {[%emt 0:00:41]} 28. Nxa7 {[%emt 0:00:39]} Rc1 {[%emt 0:00:33]} 29. Rxc1 {[%emt 0:00:27]} Bxc1 {[%emt 0:00:05]} 30. Nc6 {[%emt 0:00:19]} Kg7 {[%emt 0:02:24]} 31. a4 {[%emt 0:01:46]} f6 {[%emt 0:01:24]} 32. Bf3 {[%emt 0:06:41]} fxe5 {[%emt 0:06:16]} 33. Nxe5 {[%emt 0:00:09]} Qe3+ {[%emt 0:03:23]} 34. Kf1 {[%emt 0:00:03]} Qxd3+ {[%emt 0:00:05]} 35. Nxd3 {[%emt 0:00:03]} Be3 {[%emt 0:00:08]} 36. d5 {[%emt 0:00:53]} exd5 {[%emt 0:02:04]} 37. Ke2 {[%emt 0:00:04]} d4 {[%emt 0:03:25]} 38. Ne5 {[%emt 0:02:14]} Bg1 {[%emt 0:11:04]} 39. Kd3 {[%emt 0:00:48]} Re8 {[%emt 0:02:06]} 40. Nc4 {[%emt 0:00:00]} Re1 {[%emt 0:00:00]} 41. Nxb6 {[%emt 0:03:31]} Re3+ {[%emt 0:03:51]} 42. Kd2 {[%emt 0:02:49]} Ra3 {[%emt 0:02:11]} 43. a5 {[%emt 0:00:00]} Bh2 {[%emt 0:03:32]} 44. Kc2 {[%emt 0:00:00]} Bd6 {[%emt 0:02:53]} 45. Nd5 {[%emt 0:00:26]} d3+ {[%emt 0:04:46]} 46. Kb2 {[%emt 0:01:25]} Ra4 {[%emt 0:00:08]} 47. Kc3 {[%emt 0:00:15]} Ra3+ {[%emt 0:00:09]} 48. Kb2 {[%emt 0:10:19]} Ra4 {[%emt 0:00:03]} 49. Kb3 {[%emt 0:00:20]} Ra1 {[%emt 0:00:03]} 50. Kc3 {[%emt 0:03:42]} 1/2-1/2